{"text_format":"1","workbook":"xlsx","n_sheets":3,"sheets":["102 3346102 KL","102 3346102 Rek","102 3346102 Pol"],"not_rendered":{"charts":0,"images":0,"macros":0,"external_links":0,"defined_names":10,"comments":0,"pivot_tables":0},"unopened":[],"bounds":{"document_bytes":16777216,"sheet_cells":100000,"rows_first":2000,"rows_last":500,"rows_between":2000,"halvings":0,"cell_chars":16384,"cell_head_chars":4096},"cells_cut":0,"cells_raw":0,"read":"whole","date_system":"1900"}

{"sheet":"102 3346102 KL","index":0,"n_rows":45,"n_cols":8,"rows_kept":45,"cut":false,"hidden":false,"merged":[[50,1,50,6],[29,5,29,6],[30,5,30,6],[31,5,31,6],[32,5,32,6],[33,5,33,6],[36,1,44,6],[45,1,45,6],[46,1,46,6],[47,1,47,6],[48,1,48,6],[49,1,49,6],[22,0,22,1],[7,2,7,4],[8,2,8,4],[9,2,9,4],[10,2,10,4],[11,2,11,4]]}
["POLOŽKOVÝ ROZPOČET"]
["Rozpočet",null,"3346/102","Oprava chodníku na Havlíčovu nám-levá strana",null,"JKSO ","822.29"]
[]
["Objekt",null,null,null,null,"SKP "]
["102",null,"Oprava chodníku na Havlíčovu nám-levá strana",null,null,"Měrná jednotka","m2"]
["Stavba",null,null,null,null,"Počet jednotek",340]
["3346",null,"Turnov - Opravy chodníků a zpevněných ploch",null,null,"Náklady na m.j.",{"$f":"IF(G6=0,,ROUND((F30+F32)/G6,1))","v":0}]
["Projektant",null,null,null,null,"Typ rozpočtu"]
["Zpracovatel projektu"]
["Objednatel",null,"Město TURNOV"]
["Dodavatel",null,".",null,null,"Zakázkové číslo "]
["Rozpočtoval",null,null,null,null,"Počet listů"]
["ROZPOČTOVÉ NÁKLADY"]
["Základní rozpočtové náklady",null,null,"Ostatní rozpočtové náklady"]
[null,"HSV celkem",{"$f":"'102 3346102 Rek'!E11","v":0},{"$f":"'102 3346102 Rek'!A16","v":"Zařízení staveniště"},null,null,{"$f":"'102 3346102 Rek'!I16","v":0}]
["Z","PSV celkem",{"$f":"'102 3346102 Rek'!F11","v":0},{"$f":"'102 3346102 Rek'!A17","v":"Provoz investora"},null,null,{"$f":"'102 3346102 Rek'!I17","v":0}]
["R","M práce celkem",{"$f":"'102 3346102 Rek'!H11","v":0},{"$f":"'102 3346102 Rek'!A18","v":"Kompletační činnost (IČD)"},null,null,{"$f":"'102 3346102 Rek'!I18","v":0}]
["N","M dodávky celkem",{"$f":"'102 3346102 Rek'!G11","v":0},{"$f":"'102 3346102 Rek'!A19","v":"Vytýčení stavby a podz. inženýrských sítí"},null,null,{"$f":"'102 3346102 Rek'!I19","v":0}]
["ZRN celkem",null,{"$f":"SUM(C15:C18)","v":0},{"$f":"'102 3346102 Rek'!A20","v":"Dokumentace skutečného provedení"},null,null,{"$f":"'102 3346102 Rek'!I20","v":0}]
[null,null,null,{"$f":"'102 3346102 Rek'!A21","v":"DIO"},null,null,{"$f":"'102 3346102 Rek'!I21","v":0}]
["HZS",null,{"$f":"'102 3346102 Rek'!I11","v":0}]
["ZRN+HZS",null,{"$f":"C19+C21","v":0}]
["ZRN+ost.náklady+HZS",null,{"$f":"C22+G23","v":0},"Ostatní náklady celkem",null,null,{"$f":"'102 3346102 Rek'!H22","v":0}]
["Vypracoval",null,null,"Za zhotovitele",null,"Za objednatele"]
["Jméno :",null,null,"Jméno :",null,"Jméno :"]
["Datum :",null,null,"Datum :",null,"Datum :"]
[]
["Podpis :",null,null,"Podpis:",null,"Podpis:"]
[]
["Základ pro DPH",null,21,"%  ",null,{"$f":"C23-F32","v":0}]
["DPH",null,{"$f":"C30","v":21},"% ",null,{"$f":"ROUND(PRODUCT(F30,C31/100),0)","v":0}]
["Základ pro DPH",null,0,"% ",null,0]
["DPH",null,{"$f":"C32","v":0},"% ",null,{"$f":"ROUND(PRODUCT(F32,C33/100),0)","v":0}]
["CENA ZA OBJEKT CELKEM",null,null,null,null,{"$f":"ROUND(SUM(F30:F33),0)","v":0}]
[]
["Poznámka :",null,null,null,null,null,null," "]
[null,null,null,null,null,null,null," "]
[null,null,null,null,null,null,null," "]
[null,null,null,null,null,null,null," "]
[null,null,null,null,null,null,null," "]
[null,null,null,null,null,null,null," "]
[null,null,null,null,null,null,null," "]
[null,null,null,null,null,null,null," "]
[null,null,null,null,null,null,null," "]
[null,null,null,null,null,null,null," "]

{"sheet":"102 3346102 Rek","index":1,"n_rows":22,"n_cols":53,"rows_kept":22,"cut":false,"hidden":false,"merged":[[0,0,0,1],[1,0,1,1],[1,6,1,8],[21,7,21,8]]}
["Stavba :",null,"3346 Turnov - Opravy chodníků a zpevněných ploch",null,null,null,"Rozpočet :","3346/102"]
["Objekt :",null,"102 Oprava chodníku na Havlíčovu nám-levá strana",null,null,null,"Oprava chodníku na Havlíčovu nám-levá strana"]
[]
["REKAPITULACE  STAVEBNÍCH  DÍLŮ"]
[]
[null,"Stavební díl",null,null,"HSV","PSV","Dodávka","Montáž","HZS"]
[{"$f":"'102 3346102 Pol'!B7","v":"1"},{"$f":"'102 3346102 Pol'!C7","v":"Zemní práce"},null,null,{"$f":"'102 3346102 Pol'!BA61","v":0},{"$f":"'102 3346102 Pol'!BB61","v":0},{"$f":"'102 3346102 Pol'!BC61","v":0},{"$f":"'102 3346102 Pol'!BD61","v":0},{"$f":"'102 3346102 Pol'!BE61","v":0}]
[{"$f":"'102 3346102 Pol'!B62","v":"5"},{"$f":"'102 3346102 Pol'!C62","v":"Komunikace"},null,null,{"$f":"'102 3346102 Pol'!BA89","v":0},{"$f":"'102 3346102 Pol'!BB89","v":0},{"$f":"'102 3346102 Pol'!BC89","v":0},{"$f":"'102 3346102 Pol'!BD89","v":0},{"$f":"'102 3346102 Pol'!BE89","v":0}]
[{"$f":"'102 3346102 Pol'!B90","v":"91"},{"$f":"'102 3346102 Pol'!C90","v":"Doplňující práce na komunikaci"},null,null,{"$f":"'102 3346102 Pol'!BA95","v":0},{"$f":"'102 3346102 Pol'!BB95","v":0},{"$f":"'102 3346102 Pol'!BC95","v":0},{"$f":"'102 3346102 Pol'!BD95","v":0},{"$f":"'102 3346102 Pol'!BE95","v":0}]
[{"$f":"'102 3346102 Pol'!B96","v":"99"},{"$f":"'102 3346102 Pol'!C96","v":"Staveništní přesun hmot"},null,null,{"$f":"'102 3346102 Pol'!BA98","v":0},{"$f":"'102 3346102 Pol'!BB98","v":0},{"$f":"'102 3346102 Pol'!BC98","v":0},{"$f":"'102 3346102 Pol'!BD98","v":0},{"$f":"'102 3346102 Pol'!BE98","v":0}]
[null,"CELKEM  OBJEKT",null,null,{"$f":"SUM(E7:E10)","v":0},{"$f":"SUM(F7:F10)","v":0},{"$f":"SUM(G7:G10)","v":0},{"$f":"SUM(H7:H10)","v":0},{"$f":"SUM(I7:I10)","v":0}]
[]
["VEDLEJŠÍ ROZPOČTOVÉ  NÁKLADY"]
[]
["Název VRN",null,null,null,"Kč",null,null,null,"Kč"]
["Zařízení staveniště",null,null,null,0,null,null,null,{"$f":"E16+F16*G16/100","v":0},null,null,null,null,null,null,null,null,null,null,null,null,null,null,null,null,null,null,null,null,null,null,null,null,null,null,null,null,null,null,null,null,null,null,null,null,null,null,null,null,null,null,null,2]
["Provoz investora",null,null,null,0,null,null,null,0,null,null,null,null,null,null,null,null,null,null,null,null,null,null,null,null,null,null,null,null,null,null,null,null,null,null,null,null,null,null,null,null,null,null,null,null,null,null,null,null,null,null,null,1]
["Kompletační činnost (IČD)",null,null,null,0,null,null,null,0,null,null,null,null,null,null,null,null,null,null,null,null,null,null,null,null,null,null,null,null,null,null,null,null,null,null,null,null,null,null,null,null,null,null,null,null,null,null,null,null,null,null,null,2]
["Vytýčení stavby a podz. inženýrských sítí",null,null,null,0,null,null,null,0,null,null,null,null,null,null,null,null,null,null,null,null,null,null,null,null,null,null,null,null,null,null,null,null,null,null,null,null,null,null,null,null,null,null,null,null,null,null,null,null,null,null,null,0]
["Dokumentace skutečného provedení",null,null,null,0,null,null,null,0,null,null,null,null,null,null,null,null,null,null,null,null,null,null,null,null,null,null,null,null,null,null,null,null,null,null,null,null,null,null,null,null,null,null,null,null,null,null,null,null,null,null,null,0]
["DIO",null,null,null,0,null,null,null,0,null,null,null,null,null,null,null,null,null,null,null,null,null,null,null,null,null,null,null,null,null,null,null,null,null,null,null,null,null,null,null,null,null,null,null,null,null,null,null,null,null,null,null,0]
[null,"CELKEM VRN",null,null,null,null,null,{"$f":"SUM(I16:I21)","v":0}]

{"sheet":"102 3346102 Pol","index":2,"n_rows":98,"n_cols":80,"rows_kept":98,"cut":false,"hidden":false,"merged":[[84,2,84,3],[86,2,86,3],[87,2,87,3],[91,2,91,3],[93,2,93,3],[83,2,83,3],[70,2,70,6],[71,2,71,3],[73,2,73,3],[74,2,74,3],[75,2,75,3],[76,2,76,3],[78,2,78,3],[79,2,79,3],[80,2,80,3],[81,2,81,3],[82,2,82,3],[65,2,65,3],[66,2,66,3],[68,2,68,3],[46,2,46,6],[47,2,47,3],[49,2,49,3],[50,2,50,3],[51,2,51,3],[52,2,52,3],[53,2,53,3],[54,2,54,3],[59,2,59,6],[63,2,63,3],[64,2,64,3],[44,2,44,3],[29,2,29,3],[30,2,30,3],[32,2,32,3],[34,2,34,3],[35,2,35,3],[36,2,36,3],[37,2,37,3],[38,2,38,3],[39,2,39,3],[41,2,41,3],[43,2,43,3],[28,2,28,3],[13,2,13,3],[14,2,14,3],[16,2,16,3],[17,2,17,3],[19,2,19,3],[21,2,21,6],[22,2,22,3],[23,2,23,3],[24,2,24,3],[25,2,25,3],[27,2,27,3],[9,2,9,3],[11,2,11,3],[12,2,12,3],[0,0,0,6],[2,0,2,1],[3,0,3,1],[3,4,3,6],[8,2,8,3]]}
["Položkový rozpočet "]
[]
["Stavba :",null,"3346 Turnov - Opravy chodníků a zpevněných ploch",null,"Rozpočet:",{"$f":"'102 3346102 Rek'!H1","v":"3346/102"}]
["Objekt :",null,"102 Oprava chodníku na Havlíčovu nám-levá strana",null,{"$f":"'102 3346102 Rek'!G2","v":"Oprava chodníku na Havlíčovu nám-levá strana"}]
[]
["P.č.","Číslo položky","Název položky","MJ","množství","cena / MJ","celkem (Kč)","Jednotková hmotnost","Celková hmotnost","Jednotková dem.hmot.","Celková dem.hmot."]
["Díl:","1","Zemní práce",null,null,null,null,null,null,null,null,null,null,null,1]
[1,"113106121R00","Rozebrání dlažeb z betonových dlaždic na sucho ","m2",68,null,{"$f":"E8*F8","v":0},0,{"$f":"E8*H8","v":0},-0.13800000000000001,{"$f":"E8*J8","v":-9.3840000000000003},null,null,null,2,null,null,null,null,null,null,null,null,null,null,null,1,1,1,null,null,null,null,null,null,null,null,null,null,null,null,null,null,null,null,null,null,null,null,null,null,1,{"$f":"IF(AZ8=1,G8,0)","v":0},{"$f":"IF(AZ8=2,G8,0)","v":0},{"$f":"IF(AZ8=3,G8,0)","v":0},{"$f":"IF(AZ8=4,G8,0)","v":0},{"$f":"IF(AZ8=5,G8,0)","v":0},null,null,null,null,null,null,null,null,null,null,null,null,null,null,null,null,null,null,null,null,null,1,1]
[null,null,"Stávající betonová dlažba 30/30:70,00",null,70,null,null,null,null,null,null,null,"Stávající betonová dlažba 30/30:70,00"]
[null,null,"Odpočet plochy stávajících rabátek u stromů:-1,00*1,00*2",null,-2,null,null,null,null,null,null,null,"Odpočet plochy stávajících rabátek u stromů:-1,00*1,00*2"]
[2,"113107610R00","Odstranění podkladu nad 50 m2,kam.drcené tl.10 cm ","m2",331,null,{"$f":"E11*F11","v":0},0,{"$f":"E11*H11","v":0},-0.22,{"$f":"E11*J11","v":-72.820000000000007},null,null,null,2,null,null,null,null,null,null,null,null,null,null,null,1,1,1,null,null,null,null,null,null,null,null,null,null,null,null,null,null,null,null,null,null,null,null,null,null,1,{"$f":"IF(AZ11=1,G11,0)","v":0},{"$f":"IF(AZ11=2,G11,0)","v":0},{"$f":"IF(AZ11=3,G11,0)","v":0},{"$f":"IF(AZ11=4,G11,0)","v":0},{"$f":"IF(AZ11=5,G11,0)","v":0},null,null,null,null,null,null,null,null,null,null,null,null,null,null,null,null,null,null,null,null,null,1,1]
[null,null,"Průměrná tl. stávajícího podkladu pod dlažbou a asfalty 10 cm:",null,0,null,null,null,null,null,null,null,"Průměrná tl. stávajícího podkladu pod dlažbou a asfalty 10 cm:"]
[null,null,"Stávající betonová dlažba 30/30:70,00",null,70,null,null,null,null,null,null,null,"Stávající betonová dlažba 30/30:70,00"]
[null,null,"Stávající degradovaná asfalzová plocha chodníku - průměrná tl. 60 mm:270,00",null,270,null,null,null,null,null,null,null,"Stávající degradovaná asfalzová plocha chodníku - průměrná tl. 60 mm:270,00"]
[null,null,"Odpočet plochy stávajících rabátek u stromů:-1,00*1,00*9",null,-9,null,null,null,null,null,null,null,"Odpočet plochy stávajících rabátek u stromů:-1,00*1,00*9"]
[3,"113108406R00","Odstranění asfaltové vrstvy pl.nad 50 m2, tl. 6 cm ","m2",263,null,{"$f":"E16*F16","v":0},0,{"$f":"E16*H16","v":0},-0.13200000000000001,{"$f":"E16*J16","v":-34.716000000000001},null,null,null,2,null,null,null,null,null,null,null,null,null,null,null,1,1,1,null,null,null,null,null,null,null,null,null,null,null,null,null,null,null,null,null,null,null,null,null,null,1,{"$f":"IF(AZ16=1,G16,0)","v":0},{"$f":"IF(AZ16=2,G16,0)","v":0},{"$f":"IF(AZ16=3,G16,0)","v":0},{"$f":"IF(AZ16=4,G16,0)","v":0},{"$f":"IF(AZ16=5,G16,0)","v":0},null,null,null,null,null,null,null,null,null,null,null,null,null,null,null,null,null,null,null,null,null,1,1]
[null,null,"Stávající degradovaná asfalzová plocha chodníku - průměrná tl. 60 mm:270,00",null,270,null,null,null,null,null,null,null,"Stávající degradovaná asfalzová plocha chodníku - průměrná tl. 60 mm:270,00"]
[null,null,"Odpočet plochy stávajících rabátek u stromů:-1,00*1,00*7",null,-7,null,null,null,null,null,null,null,"Odpočet plochy stávajících rabátek u stromů:-1,00*1,00*7"]
[4,"113201111R00","Vytrhání obrubníků chodníkových a parkových (kamenné obruby pro opětovné použití)","m",12,null,{"$f":"E19*F19","v":0},0,{"$f":"E19*H19","v":0},-0.22,{"$f":"E19*J19","v":-2.64},null,null,null,2,null,null,null,null,null,null,null,null,null,null,null,1,1,1,null,null,null,null,null,null,null,null,null,null,null,null,null,null,null,null,null,null,null,null,null,null,1,{"$f":"IF(AZ19=1,G19,0)","v":0},{"$f":"IF(AZ19=2,G19,0)","v":0},{"$f":"IF(AZ19=3,G19,0)","v":0},{"$f":"IF(AZ19=4,G19,0)","v":0},{"$f":"IF(AZ19=5,G19,0)","v":0},null,null,null,null,null,null,null,null,null,null,null,null,null,null,null,null,null,null,null,null,null,1,1]
[null,null,"Výšková úprava stávajících kamenných obrubníků 30/20:12,00",null,12,null,null,null,null,null,null,null,"Výšková úprava stávajících kamenných obrubníků 30/20:12,00"]
[5,"122202201R00","Odkopávky pro silnice v hor. 3 do 100 m3 ","m3",34.83,null,{"$f":"E21*F21","v":0},0,{"$f":"E21*H21","v":0},0,{"$f":"E21*J21","v":0},null,null,null,2,null,null,null,null,null,null,null,null,null,null,null,1,0,0,null,null,null,null,null,null,null,null,null,null,null,null,null,null,null,null,null,null,null,null,null,null,1,{"$f":"IF(AZ21=1,G21,0)","v":0},{"$f":"IF(AZ21=2,G21,0)","v":0},{"$f":"IF(AZ21=3,G21,0)","v":0},{"$f":"IF(AZ21=4,G21,0)","v":0},{"$f":"IF(AZ21=5,G21,0)","v":0},null,null,null,null,null,null,null,null,null,null,null,null,null,null,null,null,null,null,null,null,null,1,0]
[null,null,"Včetně naložení na dopravní prostředek",null,null,null,null,null,null,null,null,"Včetně naložení na dopravní prostředek",null,null,3]
[null,null,"Stávající betonová dlažba 30/30:70,00*0,12",null,8.4,null,null,null,null,null,null,null,"Stávající betonová dlažba 30/30:70,00*0,12"]
[null,null,"Stávající degradovaná asfaltová plocha chodníku - chodník:(270,00-30,00)*0,09",null,21.6,null,null,null,null,null,null,null,"Stávající degradovaná asfaltová plocha chodníku - chodník:(270,00-30,00)*0,09"]
[null,null,"Stávající degradovaná asfaltová plocha chodníku - vjezdy:30,00*0,19",null,5.7,null,null,null,null,null,null,null,"Stávající degradovaná asfaltová plocha chodníku - vjezdy:30,00*0,19"]
[null,null,"Odpočet plochy stávajících rabátek u stromů:-1,00*1,00*0,12*2-1,00*1,00*0,09*7",null,-0.87,null,null,null,null,null,null,null,"Odpočet plochy stávajících rabátek u stromů:-1,00*1,00*0,12*2-1,00*1,00*0,09*7"]
[6,"122202209R00","Příplatek za lepivost - odkop. pro silnice v hor.3 ","m3",34.83,null,{"$f":"E27*F27","v":0},0,{"$f":"E27*H27","v":0},0,{"$f":"E27*J27","v":0},null,null,null,2,null,null,null,null,null,null,null,null,null,null,null,1,1,1,null,null,null,null,null,null,null,null,null,null,null,null,null,null,null,null,null,null,null,null,null,null,1,{"$f":"IF(AZ27=1,G27,0)","v":0},{"$f":"IF(AZ27=2,G27,0)","v":0},{"$f":"IF(AZ27=3,G27,0)","v":0},{"$f":"IF(AZ27=4,G27,0)","v":0},{"$f":"IF(AZ27=5,G27,0)","v":0},null,null,null,null,null,null,null,null,null,null,null,null,null,null,null,null,null,null,null,null,null,1,1]
[null,null,"Stávající betonová dlažba 30/30:70,00*0,12",null,8.4,null,null,null,null,null,null,null,"Stávající betonová dlažba 30/30:70,00*0,12"]
[null,null,"Stávající degradovaná asfaltová plocha chodníku - chodník:(270,00-30,00)*0,09",null,21.6,null,null,null,null,null,null,null,"Stávající degradovaná asfaltová plocha chodníku - chodník:(270,00-30,00)*0,09"]
[null,null,"Stávající degradovaná asfaltová plocha chodníku - vjezdy:30,00*0,19",null,5.7,null,null,null,null,null,null,null,"Stávající degradovaná asfaltová plocha chodníku - vjezdy:30,00*0,19"]
[null,null,"Odpočet plochy stávajících rabátek u stromů:-1,00*1,00*0,12*2-1,00*1,00*0,09*7",null,-0.87,null,null,null,null,null,null,null,"Odpočet plochy stávajících rabátek u stromů:-1,00*1,00*0,12*2-1,00*1,00*0,09*7"]
[7,"139601102R00","Ruční výkop jam, rýh a šachet v hornině tř. 3 ","m3",5.0621999999999998,null,{"$f":"E32*F32","v":0},0,{"$f":"E32*H32","v":0},0,{"$f":"E32*J32","v":0},null,null,null,2,null,null,null,null,null,null,null,null,null,null,null,1,1,1,null,null,null,null,null,null,null,null,null,null,null,null,null,null,null,null,null,null,null,null,null,null,1,{"$f":"IF(AZ32=1,G32,0)","v":0},{"$f":"IF(AZ32=2,G32,0)","v":0},{"$f":"IF(AZ32=3,G32,0)","v":0},{"$f":"IF(AZ32=4,G32,0)","v":0},{"$f":"IF(AZ32=5,G32,0)","v":0},null,null,null,null,null,null,null,null,null,null,null,null,null,null,null,null,null,null,null,null,null,1,1]
[null,null,"Ruční výkop okolo stromů:2,20*1,30*0,22*2+2,20*1,30*0,19*7",null,5.0621999999999998,null,null,null,null,null,null,null,"Ruční výkop okolo stromů:2,20*1,30*0,22*2+2,20*1,30*0,19*7"]
[8,"162701105RSZ","Vodorovné přemístění výkopku z hor.1-7 na skládku zhotovitele","m3",38.274000000000001,null,{"$f":"E34*F34","v":0},0,{"$f":"E34*H34","v":0},0,{"$f":"E34*J34","v":0},null,null,null,2,null,null,null,null,null,null,null,null,null,null,null,1,1,1,null,null,null,null,null,null,null,null,null,null,null,null,null,null,null,null,null,null,null,null,null,null,1,{"$f":"IF(AZ34=1,G34,0)","v":0},{"$f":"IF(AZ34=2,G34,0)","v":0},{"$f":"IF(AZ34=3,G34,0)","v":0},{"$f":"IF(AZ34=4,G34,0)","v":0},{"$f":"IF(AZ34=5,G34,0)","v":0},null,null,null,null,null,null,null,null,null,null,null,null,null,null,null,null,null,null,null,null,null,1,1]
[null,null,"Odkopávky:",null,0,null,null,null,null,null,null,null,"Odkopávky:"]
[null,null,"Stávající betonová dlažba 30/30:70,00*0,12",null,8.4,null,null,null,null,null,null,null,"Stávající betonová dlažba 30/30:70,00*0,12"]
[null,null,"Stávající degradovaná asfaltová plocha chodníku - chodník:(270,00-30,00)*0,09",null,21.6,null,null,null,null,null,null,null,"Stávající degradovaná asfaltová plocha chodníku - chodník:(270,00-30,00)*0,09"]
[null,null,"Stávající degradovaná asfaltová plocha chodníku - vjezdy:30,00*0,19",null,5.7,null,null,null,null,null,null,null,"Stávající degradovaná asfaltová plocha chodníku - vjezdy:30,00*0,19"]
[null,null,"Odpočet plochy stávajících rabátek u stromů:-2,20*1,30*0,12*2-2,20*1,30*0,09*7",null,-2.4882,null,null,null,null,null,null,null,"Odpočet plochy stávajících rabátek u stromů:-2,20*1,30*0,12*2-2,20*1,30*0,09*7"]
[null,null,"Ruční výkop okolo stromů:2,20*1,30*0,22*2+2,20*1,30*0,19*7",null,5.0621999999999998,null,null,null,null,null,null,null,"Ruční výkop okolo stromů:2,20*1,30*0,22*2+2,20*1,30*0,19*7"]
[9,"167101101R00","Nakládání výkopku z hor.1-4 v množství do 100 m3 ","m3",5.0621999999999998,null,{"$f":"E41*F41","v":0},0,{"$f":"E41*H41","v":0},0,{"$f":"E41*J41","v":0},null,null,null,2,null,null,null,null,null,null,null,null,null,null,null,1,1,1,null,null,null,null,null,null,null,null,null,null,null,null,null,null,null,null,null,null,null,null,null,null,1,{"$f":"IF(AZ41=1,G41,0)","v":0},{"$f":"IF(AZ41=2,G41,0)","v":0},{"$f":"IF(AZ41=3,G41,0)","v":0},{"$f":"IF(AZ41=4,G41,0)","v":0},{"$f":"IF(AZ41=5,G41,0)","v":0},null,null,null,null,null,null,null,null,null,null,null,null,null,null,null,null,null,null,null,null,null,1,1]
[null,null,"Ruční výkop okolo stromů:2,20*1,30*0,22*2+2,20*1,30*0,19*7",null,5.0621999999999998,null,null,null,null,null,null,null,"Ruční výkop okolo stromů:2,20*1,30*0,22*2+2,20*1,30*0,19*7"]
[10,"181101102R00","Úprava pláně v zářezech v hor. 1-4, se zhutněním ","m2",318.39999999999998,null,{"$f":"E43*F43","v":0},0,{"$f":"E43*H43","v":0},0,{"$f":"E43*J43","v":0},null,null,null,2,null,null,null,null,null,null,null,null,null,null,null,1,1,1,null,null,null,null,null,null,null,null,null,null,null,null,null,null,null,null,null,null,null,null,null,null,1,{"$f":"IF(AZ43=1,G43,0)","v":0},{"$f":"IF(AZ43=2,G43,0)","v":0},{"$f":"IF(AZ43=3,G43,0)","v":0},{"$f":"IF(AZ43=4,G43,0)","v":0},{"$f":"IF(AZ43=5,G43,0)","v":0},null,null,null,null,null,null,null,null,null,null,null,null,null,null,null,null,null,null,null,null,null,1,1]
[null,null,"Celková plocha chodníku:340,00",null,340,null,null,null,null,null,null,null,"Celková plocha chodníku:340,00"]
[null,null,"Odpočet plochy rabátek un stromů včetně lemovánín z dlažby:-2,00*1,20*9",null,-21.6,null,null,null,null,null,null,null,"Odpočet plochy rabátek un stromů včetně lemovánín z dlažby:-2,00*1,20*9"]
[11,"181300012RAC","Rozprostření ornice v rovině tloušťka 20 cm dovoz ornice ze vzdálenosti 5 km","m2",21.6,null,{"$f":"E46*F46","v":0},3.0000000000000001E-5,{"$f":"E46*H46","v":6.4800000000000003E-4},0,{"$f":"E46*J46","v":0},null,null,null,2,null,null,null,null,null,null,null,null,null,null,null,1,1,1,null,null,null,null,null,null,null,null,null,null,null,null,null,null,null,null,null,null,null,null,null,null,1,{"$f":"IF(AZ46=1,G46,0)","v":0},{"$f":"IF(AZ46=2,G46,0)","v":0},{"$f":"IF(AZ46=3,G46,0)","v":0},{"$f":"IF(AZ46=4,G46,0)","v":0},{"$f":"IF(AZ46=5,G46,0)","v":0},null,null,null,null,null,null,null,null,null,null,null,null,null,null,null,null,null,null,null,null,null,1,1]
[null,null,"Včetně přesunu hmot.",null,null,null,null,null,null,null,null,"Včetně přesunu hmot.",null,null,3]
[null,null,"Vyplnění rabátek okolo stromů:2,00*1,20*9",null,21.6,null,null,null,null,null,null,null,"Vyplnění rabátek okolo stromů:2,00*1,20*9"]
[12,"199000002R00","Poplatek za skládku horniny 1- 7 č. dle katal. odpadů 17 05 04","m3",38.274000000000001,null,{"$f":"E49*F49","v":0},0,{"$f":"E49*H49","v":0},0,{"$f":"E49*J49","v":0},null,null,null,2,null,null,null,null,null,null,null,null,null,null,null,1,1,1,null,null,null,null,null,null,null,null,null,null,null,null,null,null,null,null,null,null,null,null,null,null,1,{"$f":"IF(AZ49=1,G49,0)","v":0},{"$f":"IF(AZ49=2,G49,0)","v":0},{"$f":"IF(AZ49=3,G49,0)","v":0},{"$f":"IF(AZ49=4,G49,0)","v":0},{"$f":"IF(AZ49=5,G49,0)","v":0},null,null,null,null,null,null,null,null,null,null,null,null,null,null,null,null,null,null,null,null,null,1,1]
[null,null,"Odkopávky:",null,0,null,null,null,null,null,null,null,"Odkopávky:"]
[null,null,"Stávající betonová dlažba 30/30:70,00*0,12",null,8.4,null,null,null,null,null,null,null,"Stávající betonová dlažba 30/30:70,00*0,12"]
[null,null,"Stávající degradovaná asfaltová plocha chodníku - chodník:(270,00-30,00)*0,09",null,21.6,null,null,null,null,null,null,null,"Stávající degradovaná asfaltová plocha chodníku - chodník:(270,00-30,00)*0,09"]
[null,null,"Stávající degradovaná asfaltová plocha chodníku - vjezdy:30,00*0,19",null,5.7,null,null,null,null,null,null,null,"Stávající degradovaná asfaltová plocha chodníku - vjezdy:30,00*0,19"]
[null,null,"Odpočet plochy stávajících rabátek u stromů:-2,20*1,30*0,12*2-2,20*1,30*0,09*7",null,-2.4882,null,null,null,null,null,null,null,"Odpočet plochy stávajících rabátek u stromů:-2,20*1,30*0,12*2-2,20*1,30*0,09*7"]
[null,null,"Ruční výkop okolo stromů:2,20*1,30*0,22*2+2,20*1,30*0,19*7",null,5.0621999999999998,null,null,null,null,null,null,null,"Ruční výkop okolo stromů:2,20*1,30*0,22*2+2,20*1,30*0,19*7"]
[13,"979082113RSZ","Vodorovná doprava suti po suchu na skládku zhotovitele","t",116.92,null,{"$f":"E56*F56","v":0},0,{"$f":"E56*H56","v":0},0,{"$f":"E56*J56","v":0},null,null,null,2,null,null,null,null,null,null,null,null,null,null,null,1,1,1,null,null,null,null,null,null,null,null,null,null,null,null,null,null,null,null,null,null,null,null,null,null,1,{"$f":"IF(AZ56=1,G56,0)","v":0},{"$f":"IF(AZ56=2,G56,0)","v":0},{"$f":"IF(AZ56=3,G56,0)","v":0},{"$f":"IF(AZ56=4,G56,0)","v":0},{"$f":"IF(AZ56=5,G56,0)","v":0},null,null,null,null,null,null,null,null,null,null,null,null,null,null,null,null,null,null,null,null,null,1,1]
[14,"979089001R00","Poplatek za skládku stavební suti štěrky z komunikací, skupina odpadu 010408","t",72.819999999999993,null,{"$f":"E57*F57","v":0},0,{"$f":"E57*H57","v":0},0,{"$f":"E57*J57","v":0},null,null,null,2,null,null,null,null,null,null,null,null,null,null,null,1,1,1,null,null,null,null,null,null,null,null,null,null,null,null,null,null,null,null,null,null,null,null,null,null,1,{"$f":"IF(AZ57=1,G57,0)","v":0},{"$f":"IF(AZ57=2,G57,0)","v":0},{"$f":"IF(AZ57=3,G57,0)","v":0},{"$f":"IF(AZ57=4,G57,0)","v":0},{"$f":"IF(AZ57=5,G57,0)","v":0},null,null,null,null,null,null,null,null,null,null,null,null,null,null,null,null,null,null,null,null,null,1,1]
[15,"979990103R00","Poplatek za skládku stavební suti beton, žula  skupina odpadu 170101","t",9.3840000000000003,null,{"$f":"E58*F58","v":0},0,{"$f":"E58*H58","v":0},0,{"$f":"E58*J58","v":0},null,null,null,2,null,null,null,null,null,null,null,null,null,null,null,1,1,1,null,null,null,null,null,null,null,null,null,null,null,null,null,null,null,null,null,null,null,null,null,null,1,{"$f":"IF(AZ58=1,G58,0)","v":0},{"$f":"IF(AZ58=2,G58,0)","v":0},{"$f":"IF(AZ58=3,G58,0)","v":0},{"$f":"IF(AZ58=4,G58,0)","v":0},{"$f":"IF(AZ58=5,G58,0)","v":0},null,null,null,null,null,null,null,null,null,null,null,null,null,null,null,null,null,null,null,null,null,1,1]
[16,"979999995R00","Poplatek za reciklaci asfaltu, kusovost do 1600cm2 skupina 170302","t",34.716000000000001,null,{"$f":"E59*F59","v":0},0,{"$f":"E59*H59","v":0},0,{"$f":"E59*J59","v":0},null,null,null,2,null,null,null,null,null,null,null,null,null,null,null,1,1,1,null,null,null,null,null,null,null,null,null,null,null,null,null,null,null,null,null,null,null,null,null,null,1,{"$f":"IF(AZ59=1,G59,0)","v":0},{"$f":"IF(AZ59=2,G59,0)","v":0},{"$f":"IF(AZ59=3,G59,0)","v":0},{"$f":"IF(AZ59=4,G59,0)","v":0},{"$f":"IF(AZ59=5,G59,0)","v":0},null,null,null,null,null,null,null,null,null,null,null,null,null,null,null,null,null,null,null,null,null,1,1]
[null,null,"Položka je určena pro suť o velikosti kusu do 30x30 cm (technologický materiál určený k recyklaci).",null,null,null,null,null,null,null,null,"Položka je určena pro suť o velikosti kusu do 30x30 cm (technologický materiál určený k recyklaci).",null,null,3]
[null,"Celkem za","1 Zemní práce",null,null,null,{"$f":"SUM(G7:G60)","v":0},null,{"$f":"SUM(I7:I60)","v":6.4800000000000003E-4},null,{"$f":"SUM(K7:K60)","v":-119.56000000000002},null,null,null,4,null,null,null,null,null,null,null,null,null,null,null,null,null,null,null,null,null,null,null,null,null,null,null,null,null,null,null,null,null,null,null,null,null,null,null,null,null,{"$f":"SUM(BA7:BA60)","v":0},{"$f":"SUM(BB7:BB60)","v":0},{"$f":"SUM(BC7:BC60)","v":0},{"$f":"SUM(BD7:BD60)","v":0},{"$f":"SUM(BE7:BE60)","v":0}]
["Díl:","5","Komunikace",null,null,null,null,null,null,null,null,null,null,null,1]
[17,"564851111RT2","Podklad ze štěrkodrti po zhutnění tloušťky 15 cm štěrkodrť frakce 0-32 mm","m2",288.39999999999998,null,{"$f":"E63*F63","v":0},0.378,{"$f":"E63*H63","v":109.01519999999999},0,{"$f":"E63*J63","v":0},null,null,null,2,null,null,null,null,null,null,null,null,null,null,null,1,1,1,null,null,null,null,null,null,null,null,null,null,null,null,null,null,null,null,null,null,null,null,null,null,1,{"$f":"IF(AZ63=1,G63,0)","v":0},{"$f":"IF(AZ63=2,G63,0)","v":0},{"$f":"IF(AZ63=3,G63,0)","v":0},{"$f":"IF(AZ63=4,G63,0)","v":0},{"$f":"IF(AZ63=5,G63,0)","v":0},null,null,null,null,null,null,null,null,null,null,null,null,null,null,null,null,null,null,null,null,null,1,1]
[null,null,"Mozaika - chodník:",null,0,null,null,null,null,null,null,null,"Mozaika - chodník:"]
[null,null,"Celková plocha chodníku:340,00",null,340,null,null,null,null,null,null,null,"Celková plocha chodníku:340,00"]
[null,null,"Odpočet dlažby vjezdů:-30,00",null,-30,null,null,null,null,null,null,null,"Odpočet dlažby vjezdů:-30,00"]
[null,null,"Odpočet plochy rabátek un stromů včetně lemovánín z dlažby:-2,00*1,20*9",null,-21.6,null,null,null,null,null,null,null,"Odpočet plochy rabátek un stromů včetně lemovánín z dlažby:-2,00*1,20*9"]
[18,"564861111RT2","Podklad ze štěrkodrti po zhutnění tloušťky 20 cm štěrkodrť frakce 0-32 mm","m2",30,null,{"$f":"E68*F68","v":0},0.441,{"$f":"E68*H68","v":13.23},0,{"$f":"E68*J68","v":0},null,null,null,2,null,null,null,null,null,null,null,null,null,null,null,1,1,1,null,null,null,null,null,null,null,null,null,null,null,null,null,null,null,null,null,null,null,null,null,null,1,{"$f":"IF(AZ68=1,G68,0)","v":0},{"$f":"IF(AZ68=2,G68,0)","v":0},{"$f":"IF(AZ68=3,G68,0)","v":0},{"$f":"IF(AZ68=4,G68,0)","v":0},{"$f":"IF(AZ68=5,G68,0)","v":0},null,null,null,null,null,null,null,null,null,null,null,null,null,null,null,null,null,null,null,null,null,1,1]
[null,null,"Plocha dlažby - vjezdy:30,00",null,30,null,null,null,null,null,null,null,"Plocha dlažby - vjezdy:30,00"]
[19,"591211111R00","Kladení dlažby drobné kostky,lože z kamen.tl. 5 cm ","m2",30,null,{"$f":"E70*F70","v":0},0.11,{"$f":"E70*H70","v":3.3},0,{"$f":"E70*J70","v":0},null,null,null,2,null,null,null,null,null,null,null,null,null,null,null,1,1,1,null,null,null,null,null,null,null,null,null,null,null,null,null,null,null,null,null,null,null,null,null,null,1,{"$f":"IF(AZ70=1,G70,0)","v":0},{"$f":"IF(AZ70=2,G70,0)","v":0},{"$f":"IF(AZ70=3,G70,0)","v":0},{"$f":"IF(AZ70=4,G70,0)","v":0},{"$f":"IF(AZ70=5,G70,0)","v":0},null,null,null,null,null,null,null,null,null,null,null,null,null,null,null,null,null,null,null,null,null,1,1]
[null,null,"V položce jsou zakalkulovány i náklady na dodání hmot pro lože a na dodání téhož materiálu na výplň spár.",null,null,null,null,null,null,null,null,"V položce jsou zakalkulovány i náklady na dodání hmot pro lože a na dodání téhož materiálu na výplň spár.",null,null,3]
[null,null,"Plocha dlažby - vjezdy:30,00",null,30,null,null,null,null,null,null,null,"Plocha dlažby - vjezdy:30,00"]
[20,"596111111R00","Kladení dlažby mozaika 1barva, lože z kam.do 4 cm ","m2",284.26,null,{"$f":"E73*F73","v":0},0.16700000000000001,{"$f":"E73*H73","v":47.471420000000002},0,{"$f":"E73*J73","v":0},null,null,null,2,null,null,null,null,null,null,null,null,null,null,null,1,1,1,null,null,null,null,null,null,null,null,null,null,null,null,null,null,null,null,null,null,null,null,null,null,1,{"$f":"IF(AZ73=1,G73,0)","v":0},{"$f":"IF(AZ73=2,G73,0)","v":0},{"$f":"IF(AZ73=3,G73,0)","v":0},{"$f":"IF(AZ73=4,G73,0)","v":0},{"$f":"IF(AZ73=5,G73,0)","v":0},null,null,null,null,null,null,null,null,null,null,null,null,null,null,null,null,null,null,null,null,null,1,1]
[null,null,"Mozaika - chodník:",null,0,null,null,null,null,null,null,null,"Mozaika - chodník:"]
[null,null,"Celková plocha chodníku:340,00",null,340,null,null,null,null,null,null,null,"Celková plocha chodníku:340,00"]
[null,null,"Odpočet dlažby vjezdů:-30,00",null,-30,null,null,null,null,null,null,null,"Odpočet dlažby vjezdů:-30,00"]
[null,null,"Odpočet plochy rabátek un stromů včetně lemovánín z dlažby:-2,20*1,30*9",null,-25.74,null,null,null,null,null,null,null,"Odpočet plochy rabátek un stromů včetně lemovánín z dlažby:-2,20*1,30*9"]
[21,"58380010","Mozaika dlažební štípaná 4/6 cm  1t = 8 - 8,5 m2","t",35.1449,null,{"$f":"E78*F78","v":0},1,{"$f":"E78*H78","v":35.1449},null,{"$f":"E78*J78","v":0},null,null,null,2,null,null,null,null,null,null,null,null,null,null,null,3,1,58380010,null,null,null,null,null,null,null,null,null,null,null,null,null,null,null,null,null,null,null,null,null,null,1,{"$f":"IF(AZ78=1,G78,0)","v":0},{"$f":"IF(AZ78=2,G78,0)","v":0},{"$f":"IF(AZ78=3,G78,0)","v":0},{"$f":"IF(AZ78=4,G78,0)","v":0},{"$f":"IF(AZ78=5,G78,0)","v":0},null,null,null,null,null,null,null,null,null,null,null,null,null,null,null,null,null,null,null,null,null,3,1]
[null,null,"Mozaika - chodník:",null,0,null,null,null,null,null,null,null,"Mozaika - chodník:"]
[null,null,"Začátek provozního součtu",null,0,null,null,null,null,null,null,null,"Začátek provozního součtu"]
[null,null,"Celková plocha chodníku:340,00",null,340,null,null,null,null,null,null,null,"Celková plocha chodníku:340,00"]
[null,null,"Odpočet dlažby vjezdů:-30,00",null,-30,null,null,null,null,null,null,null,"Odpočet dlažby vjezdů:-30,00"]
[null,null,"Odpočet plochy rabátek un stromů včetně lemovánín z dlažby:-2,20*1,30*9",null,-25.74,null,null,null,null,null,null,null,"Odpočet plochy rabátek un stromů včetně lemovánín z dlažby:-2,20*1,30*9"]
[null,null,"Konec provozního součtu",null,284.26,null,null,null,null,null,null,null,"Konec provozního součtu"]
[null,null,"284,26020/8,25*1,02",null,35.1449,null,null,null,null,null,null,null,"284,26020/8,25*1,02"]
[22,"58380129","Kostka dlažební drobná 10/12 štípaná Itř. 1t=4,0m2","t",8.7057000000000002,null,{"$f":"E86*F86","v":0},1,{"$f":"E86*H86","v":8.7057000000000002},null,{"$f":"E86*J86","v":0},null,null,null,2,null,null,null,null,null,null,null,null,null,null,null,3,1,58380129,null,null,null,null,null,null,null,null,null,null,null,null,null,null,null,null,null,null,null,null,null,null,1,{"$f":"IF(AZ86=1,G86,0)","v":0},{"$f":"IF(AZ86=2,G86,0)","v":0},{"$f":"IF(AZ86=3,G86,0)","v":0},{"$f":"IF(AZ86=4,G86,0)","v":0},{"$f":"IF(AZ86=5,G86,0)","v":0},null,null,null,null,null,null,null,null,null,null,null,null,null,null,null,null,null,null,null,null,null,3,1]
[null,null,"Plocha dlažby - vjezdy:30,00/4,00*1,02",null,7.65,null,null,null,null,null,null,null,"Plocha dlažby - vjezdy:30,00/4,00*1,02"]
[null,null,"Lemovánín  rabátek z dlažby drobné:(2,20+1,20*2)*9*0,10/4,00*1,02",null,1.0557000000000001,null,null,null,null,null,null,null,"Lemovánín  rabátek z dlažby drobné:(2,20+1,20*2)*9*0,10/4,00*1,02"]
[null,"Celkem za","5 Komunikace",null,null,null,{"$f":"SUM(G62:G88)","v":0},null,{"$f":"SUM(I62:I88)","v":216.86722},null,{"$f":"SUM(K62:K88)","v":0},null,null,null,4,null,null,null,null,null,null,null,null,null,null,null,null,null,null,null,null,null,null,null,null,null,null,null,null,null,null,null,null,null,null,null,null,null,null,null,null,null,{"$f":"SUM(BA62:BA88)","v":0},{"$f":"SUM(BB62:BB88)","v":0},{"$f":"SUM(BC62:BC88)","v":0},{"$f":"SUM(BD62:BD88)","v":0},{"$f":"SUM(BE62:BE88)","v":0}]
["Díl:","91","Doplňující práce na komunikaci",null,null,null,null,null,null,null,null,null,null,null,1]
[23,"916261111R00","Osazení obruby z kostek drobných, s boční opěrou ","m",41.4,null,{"$f":"E91*F91","v":0},9.9709999999999993E-2,{"$f":"E91*H91","v":4.1279939999999993},0,{"$f":"E91*J91","v":0},null,null,null,2,null,null,null,null,null,null,null,null,null,null,null,1,1,1,null,null,null,null,null,null,null,null,null,null,null,null,null,null,null,null,null,null,null,null,null,null,1,{"$f":"IF(AZ91=1,G91,0)","v":0},{"$f":"IF(AZ91=2,G91,0)","v":0},{"$f":"IF(AZ91=3,G91,0)","v":0},{"$f":"IF(AZ91=4,G91,0)","v":0},{"$f":"IF(AZ91=5,G91,0)","v":0},null,null,null,null,null,null,null,null,null,null,null,null,null,null,null,null,null,null,null,null,null,1,1]
[null,null,"Lemovánín  rabátek z dlažby drobné:(2,20+1,20*2)*9",null,41.4,null,null,null,null,null,null,null,"Lemovánín  rabátek z dlažby drobné:(2,20+1,20*2)*9"]
[24,"917161111R00","Osazení lež. obrub.kamen. s opěrou, lože z C 12/15 (původní kamenné obrubníky)","m",12,null,{"$f":"E93*F93","v":0},0.18806,{"$f":"E93*H93","v":2.2567200000000001},0,{"$f":"E93*J93","v":0},null,null,null,2,null,null,null,null,null,null,null,null,null,null,null,1,1,1,null,null,null,null,null,null,null,null,null,null,null,null,null,null,null,null,null,null,null,null,null,null,1,{"$f":"IF(AZ93=1,G93,0)","v":0},{"$f":"IF(AZ93=2,G93,0)","v":0},{"$f":"IF(AZ93=3,G93,0)","v":0},{"$f":"IF(AZ93=4,G93,0)","v":0},{"$f":"IF(AZ93=5,G93,0)","v":0},null,null,null,null,null,null,null,null,null,null,null,null,null,null,null,null,null,null,null,null,null,1,1]
[null,null,"Výšková úprava stávajících kamenných obrubníků 30/20:12,00",null,12,null,null,null,null,null,null,null,"Výšková úprava stávajících kamenných obrubníků 30/20:12,00"]
[null,"Celkem za","91 Doplňující práce na komunikaci",null,null,null,{"$f":"SUM(G90:G94)","v":0},null,{"$f":"SUM(I90:I94)","v":6.3847139999999989},null,{"$f":"SUM(K90:K94)","v":0},null,null,null,4,null,null,null,null,null,null,null,null,null,null,null,null,null,null,null,null,null,null,null,null,null,null,null,null,null,null,null,null,null,null,null,null,null,null,null,null,null,{"$f":"SUM(BA90:BA94)","v":0},{"$f":"SUM(BB90:BB94)","v":0},{"$f":"SUM(BC90:BC94)","v":0},{"$f":"SUM(BD90:BD94)","v":0},{"$f":"SUM(BE90:BE94)","v":0}]
["Díl:","99","Staveništní přesun hmot",null,null,null,null,null,null,null,null,null,null,null,1]
[25,"998223011R00","Přesun hmot, pozemní komunikace, kryt dlážděný ","t",223.25258199999999,null,{"$f":"E97*F97","v":0},0,{"$f":"E97*H97","v":0},null,{"$f":"E97*J97","v":0},null,null,null,2,null,null,null,null,null,null,null,null,null,null,null,7,1,2,null,null,null,null,null,null,null,null,null,null,null,null,null,null,null,null,null,null,null,null,null,null,1,{"$f":"IF(AZ97=1,G97,0)","v":0},{"$f":"IF(AZ97=2,G97,0)","v":0},{"$f":"IF(AZ97=3,G97,0)","v":0},{"$f":"IF(AZ97=4,G97,0)","v":0},{"$f":"IF(AZ97=5,G97,0)","v":0},null,null,null,null,null,null,null,null,null,null,null,null,null,null,null,null,null,null,null,null,null,7,1]
[null,"Celkem za","99 Staveništní přesun hmot",null,null,null,{"$f":"SUM(G96:G97)","v":0},null,{"$f":"SUM(I96:I97)","v":0},null,{"$f":"SUM(K96:K97)","v":0},null,null,null,4,null,null,null,null,null,null,null,null,null,null,null,null,null,null,null,null,null,null,null,null,null,null,null,null,null,null,null,null,null,null,null,null,null,null,null,null,null,{"$f":"SUM(BA96:BA97)","v":0},{"$f":"SUM(BB96:BB97)","v":0},{"$f":"SUM(BC96:BC97)","v":0},{"$f":"SUM(BD96:BD97)","v":0},{"$f":"SUM(BE96:BE97)","v":0}]